{"text_format":"3","workbook":"xlsx","n_sheets":1,"sheets":["Daftar Inventaris"],"not_rendered":{"defined_names":3},"read":"whole","date_system":"1900"}

{"sheet":"Daftar Inventaris","index":0,"n_rows":28,"n_cols":12,"rows_kept":28,"merged":[[0,2,0,4],[0,5,0,6]]}
[null,null,"Daftar Inventaris",null,null,"Sorot item untuk menyusun ulang?",null,"Ya"]
[]
[null,"Item yang ditandai untuk disusun ulang","ID Inventaris","Nama","Deskripsi","Harga Satuan","Kuantitas dalam Stok","Nilai Inventaris","Tingkat Penyusunan Ulang","Waktu Penyusunan Ulang dalam Hari","Kuantitas dalam Penyusunan Ulang","Dihentikan?"]
[null,{"$f":"IFERROR((DaftarInventaris[[#This Row],[Kuantitas dalam Stok]]<=DaftarInventaris[[#This Row],[Tingkat Penyusunan Ulang]])*(DaftarInventaris[[#This Row],[Dihentikan?]]=\"\")*nilSoroti,0)","v":1},"IN0001","Item 1","Desk 1",{"v":5100,"d":"Rp5,100.00"},25,{"$f":"DaftarInventaris[[#This Row],[Harga Satuan]]*DaftarInventaris[[#This Row],[Kuantitas dalam Stok]]","v":{"v":127500,"d":"Rp127,500.00"}},29,13,50,""]
[null,{"$f":"IFERROR((DaftarInventaris[[#This Row],[Kuantitas dalam Stok]]<=DaftarInventaris[[#This Row],[Tingkat Penyusunan Ulang]])*(DaftarInventaris[[#This Row],[Dihentikan?]]=\"\")*nilSoroti,0)","v":1},"IN0002","Item 2","Desk 2",{"v":9300,"d":"Rp9,300.00"},132,{"$f":"DaftarInventaris[[#This Row],[Harga Satuan]]*DaftarInventaris[[#This Row],[Kuantitas dalam Stok]]","v":{"v":1227600,"d":"Rp1,227,600.00"}},231,4,50,""]
[null,{"$f":"IFERROR((DaftarInventaris[[#This Row],[Kuantitas dalam Stok]]<=DaftarInventaris[[#This Row],[Tingkat Penyusunan Ulang]])*(DaftarInventaris[[#This Row],[Dihentikan?]]=\"\")*nilSoroti,0)","v":0},"IN0003","Item 3","Desk 3",{"v":5700,"d":"Rp5,700.00"},151,{"$f":"DaftarInventaris[[#This Row],[Harga Satuan]]*DaftarInventaris[[#This Row],[Kuantitas dalam Stok]]","v":{"v":860700,"d":"Rp860,700.00"}},114,11,150,""]
[null,{"$f":"IFERROR((DaftarInventaris[[#This Row],[Kuantitas dalam Stok]]<=DaftarInventaris[[#This Row],[Tingkat Penyusunan Ulang]])*(DaftarInventaris[[#This Row],[Dihentikan?]]=\"\")*nilSoroti,0)","v":0},"IN0004","Item 4","Desk 4",{"v":1900,"d":"Rp1,900.00"},186,{"$f":"DaftarInventaris[[#This Row],[Harga Satuan]]*DaftarInventaris[[#This Row],[Kuantitas dalam Stok]]","v":{"v":353400,"d":"Rp353,400.00"}},158,6,50,""]
[null,{"$f":"IFERROR((DaftarInventaris[[#This Row],[Kuantitas dalam Stok]]<=DaftarInventaris[[#This Row],[Tingkat Penyusunan Ulang]])*(DaftarInventaris[[#This Row],[Dihentikan?]]=\"\")*nilSoroti,0)","v":0},"IN0005","Item 5","Desk 5",{"v":7500,"d":"Rp7,500.00"},62,{"$f":"DaftarInventaris[[#This Row],[Harga Satuan]]*DaftarInventaris[[#This Row],[Kuantitas dalam Stok]]","v":{"v":465000,"d":"Rp465,000.00"}},39,12,50,""]
[null,{"$f":"IFERROR((DaftarInventaris[[#This Row],[Kuantitas dalam Stok]]<=DaftarInventaris[[#This Row],[Tingkat Penyusunan Ulang]])*(DaftarInventaris[[#This Row],[Dihentikan?]]=\"\")*nilSoroti,0)","v":1},"IN0006","Item 6","Desk 6",{"v":1100,"d":"Rp1,100.00"},5,{"$f":"DaftarInventaris[[#This Row],[Harga Satuan]]*DaftarInventaris[[#This Row],[Kuantitas dalam Stok]]","v":{"v":5500,"d":"Rp5,500.00"}},9,13,150,""]
[null,{"$f":"IFERROR((DaftarInventaris[[#This Row],[Kuantitas dalam Stok]]<=DaftarInventaris[[#This Row],[Tingkat Penyusunan Ulang]])*(DaftarInventaris[[#This Row],[Dihentikan?]]=\"\")*nilSoroti,0)","v":0},"IN0007","Item 7","Desk 7",{"v":5600,"d":"Rp5,600.00"},58,{"$f":"DaftarInventaris[[#This Row],[Harga Satuan]]*DaftarInventaris[[#This Row],[Kuantitas dalam Stok]]","v":{"v":324800,"d":"Rp324,800.00"}},109,7,100,"ya"]
[null,{"$f":"IFERROR((DaftarInventaris[[#This Row],[Kuantitas dalam Stok]]<=DaftarInventaris[[#This Row],[Tingkat Penyusunan Ulang]])*(DaftarInventaris[[#This Row],[Dihentikan?]]=\"\")*nilSoroti,0)","v":1},"IN0008","Item 8","Desk 8",{"v":3800,"d":"Rp3,800.00"},101,{"$f":"DaftarInventaris[[#This Row],[Harga Satuan]]*DaftarInventaris[[#This Row],[Kuantitas dalam Stok]]","v":{"v":383800,"d":"Rp383,800.00"}},162,3,100,""]
[null,{"$f":"IFERROR((DaftarInventaris[[#This Row],[Kuantitas dalam Stok]]<=DaftarInventaris[[#This Row],[Tingkat Penyusunan Ulang]])*(DaftarInventaris[[#This Row],[Dihentikan?]]=\"\")*nilSoroti,0)","v":0},"IN0009","Item 9","Desk 9",{"v":5900,"d":"Rp5,900.00"},122,{"$f":"DaftarInventaris[[#This Row],[Harga Satuan]]*DaftarInventaris[[#This Row],[Kuantitas dalam Stok]]","v":{"v":719800,"d":"Rp719,800.00"}},82,3,150,""]
[null,{"$f":"IFERROR((DaftarInventaris[[#This Row],[Kuantitas dalam Stok]]<=DaftarInventaris[[#This Row],[Tingkat Penyusunan Ulang]])*(DaftarInventaris[[#This Row],[Dihentikan?]]=\"\")*nilSoroti,0)","v":1},"IN0010","Item 10","Desk 10",{"v":5000,"d":"Rp5,000.00"},175,{"$f":"DaftarInventaris[[#This Row],[Harga Satuan]]*DaftarInventaris[[#This Row],[Kuantitas dalam Stok]]","v":{"v":875000,"d":"Rp875,000.00"}},283,8,150,""]
[null,{"$f":"IFERROR((DaftarInventaris[[#This Row],[Kuantitas dalam Stok]]<=DaftarInventaris[[#This Row],[Tingkat Penyusunan Ulang]])*(DaftarInventaris[[#This Row],[Dihentikan?]]=\"\")*nilSoroti,0)","v":1},"IN0011","Item 11","Desk 11",{"v":5900,"d":"Rp5,900.00"},176,{"$f":"DaftarInventaris[[#This Row],[Harga Satuan]]*DaftarInventaris[[#This Row],[Kuantitas dalam Stok]]","v":{"v":1038400,"d":"Rp1,038,400.00"}},229,1,100,""]
[null,{"$f":"IFERROR((DaftarInventaris[[#This Row],[Kuantitas dalam Stok]]<=DaftarInventaris[[#This Row],[Tingkat Penyusunan Ulang]])*(DaftarInventaris[[#This Row],[Dihentikan?]]=\"\")*nilSoroti,0)","v":1},"IN0012","Item 12","Desk 12",{"v":1800,"d":"Rp1,800.00"},22,{"$f":"DaftarInventaris[[#This Row],[Harga Satuan]]*DaftarInventaris[[#This Row],[Kuantitas dalam Stok]]","v":{"v":39600,"d":"Rp39,600.00"}},36,12,50,""]
[null,{"$f":"IFERROR((DaftarInventaris[[#This Row],[Kuantitas dalam Stok]]<=DaftarInventaris[[#This Row],[Tingkat Penyusunan Ulang]])*(DaftarInventaris[[#This Row],[Dihentikan?]]=\"\")*nilSoroti,0)","v":1},"IN0013","Item 13","Desk 13",{"v":2600,"d":"Rp2,600.00"},72,{"$f":"DaftarInventaris[[#This Row],[Harga Satuan]]*DaftarInventaris[[#This Row],[Kuantitas dalam Stok]]","v":{"v":187200,"d":"Rp187,200.00"}},102,9,100,""]
[null,{"$f":"IFERROR((DaftarInventaris[[#This Row],[Kuantitas dalam Stok]]<=DaftarInventaris[[#This Row],[Tingkat Penyusunan Ulang]])*(DaftarInventaris[[#This Row],[Dihentikan?]]=\"\")*nilSoroti,0)","v":1},"IN0014","Item 14","Desk 14",{"v":4200,"d":"Rp4,200.00"},62,{"$f":"DaftarInventaris[[#This Row],[Harga Satuan]]*DaftarInventaris[[#This Row],[Kuantitas dalam Stok]]","v":{"v":260400,"d":"Rp260,400.00"}},83,2,100,""]
[null,{"$f":"IFERROR((DaftarInventaris[[#This Row],[Kuantitas dalam Stok]]<=DaftarInventaris[[#This Row],[Tingkat Penyusunan Ulang]])*(DaftarInventaris[[#This Row],[Dihentikan?]]=\"\")*nilSoroti,0)","v":0},"IN0015","Item 15","Desk 15",{"v":3200,"d":"Rp3,200.00"},46,{"$f":"DaftarInventaris[[#This Row],[Harga Satuan]]*DaftarInventaris[[#This Row],[Kuantitas dalam Stok]]","v":{"v":147200,"d":"Rp147,200.00"}},23,15,50,""]
[null,{"$f":"IFERROR((DaftarInventaris[[#This Row],[Kuantitas dalam Stok]]<=DaftarInventaris[[#This Row],[Tingkat Penyusunan Ulang]])*(DaftarInventaris[[#This Row],[Dihentikan?]]=\"\")*nilSoroti,0)","v":1},"IN0016","Item 16","Desk 16",{"v":9000,"d":"Rp9,000.00"},96,{"$f":"DaftarInventaris[[#This Row],[Harga Satuan]]*DaftarInventaris[[#This Row],[Kuantitas dalam Stok]]","v":{"v":864000,"d":"Rp864,000.00"}},180,3,50,""]
[null,{"$f":"IFERROR((DaftarInventaris[[#This Row],[Kuantitas dalam Stok]]<=DaftarInventaris[[#This Row],[Tingkat Penyusunan Ulang]])*(DaftarInventaris[[#This Row],[Dihentikan?]]=\"\")*nilSoroti,0)","v":0},"IN0017","Item 17","Desk 17",{"v":9700,"d":"Rp9,700.00"},57,{"$f":"DaftarInventaris[[#This Row],[Harga Satuan]]*DaftarInventaris[[#This Row],[Kuantitas dalam Stok]]","v":{"v":552900,"d":"Rp552,900.00"}},98,12,50,"Ya"]
[null,{"$f":"IFERROR((DaftarInventaris[[#This Row],[Kuantitas dalam Stok]]<=DaftarInventaris[[#This Row],[Tingkat Penyusunan Ulang]])*(DaftarInventaris[[#This Row],[Dihentikan?]]=\"\")*nilSoroti,0)","v":1},"IN0018","Item 18","Desk 18",{"v":1200,"d":"Rp1,200.00"},6,{"$f":"DaftarInventaris[[#This Row],[Harga Satuan]]*DaftarInventaris[[#This Row],[Kuantitas dalam Stok]]","v":{"v":7200,"d":"Rp7,200.00"}},7,13,50,""]
[null,{"$f":"IFERROR((DaftarInventaris[[#This Row],[Kuantitas dalam Stok]]<=DaftarInventaris[[#This Row],[Tingkat Penyusunan Ulang]])*(DaftarInventaris[[#This Row],[Dihentikan?]]=\"\")*nilSoroti,0)","v":1},"IN0019","Item 19","Desk 19",{"v":8200,"d":"Rp8,200.00"},143,{"$f":"DaftarInventaris[[#This Row],[Harga Satuan]]*DaftarInventaris[[#This Row],[Kuantitas dalam Stok]]","v":{"v":1172600,"d":"Rp1,172,600.00"}},164,12,150]
[null,{"$f":"IFERROR((DaftarInventaris[[#This Row],[Kuantitas dalam Stok]]<=DaftarInventaris[[#This Row],[Tingkat Penyusunan Ulang]])*(DaftarInventaris[[#This Row],[Dihentikan?]]=\"\")*nilSoroti,0)","v":0},"IN0020","Item 20","Desk 20",{"v":1600,"d":"Rp1,600.00"},124,{"$f":"DaftarInventaris[[#This Row],[Harga Satuan]]*DaftarInventaris[[#This Row],[Kuantitas dalam Stok]]","v":{"v":198400,"d":"Rp198,400.00"}},113,14,50,""]
[null,{"$f":"IFERROR((DaftarInventaris[[#This Row],[Kuantitas dalam Stok]]<=DaftarInventaris[[#This Row],[Tingkat Penyusunan Ulang]])*(DaftarInventaris[[#This Row],[Dihentikan?]]=\"\")*nilSoroti,0)","v":0},"IN0021","Item 21","Desk 21",{"v":1900,"d":"Rp1,900.00"},112,{"$f":"DaftarInventaris[[#This Row],[Harga Satuan]]*DaftarInventaris[[#This Row],[Kuantitas dalam Stok]]","v":{"v":212800,"d":"Rp212,800.00"}},75,11,50,""]
[null,{"$f":"IFERROR((DaftarInventaris[[#This Row],[Kuantitas dalam Stok]]<=DaftarInventaris[[#This Row],[Tingkat Penyusunan Ulang]])*(DaftarInventaris[[#This Row],[Dihentikan?]]=\"\")*nilSoroti,0)","v":0},"IN0022","Item 22","Desk 22",{"v":2400,"d":"Rp2,400.00"},182,{"$f":"DaftarInventaris[[#This Row],[Harga Satuan]]*DaftarInventaris[[#This Row],[Kuantitas dalam Stok]]","v":{"v":436800,"d":"Rp436,800.00"}},132,15,150,""]
[null,{"$f":"IFERROR((DaftarInventaris[[#This Row],[Kuantitas dalam Stok]]<=DaftarInventaris[[#This Row],[Tingkat Penyusunan Ulang]])*(DaftarInventaris[[#This Row],[Dihentikan?]]=\"\")*nilSoroti,0)","v":0},"IN0023","Item 23","Desk 23",{"v":2900,"d":"Rp2,900.00"},106,{"$f":"DaftarInventaris[[#This Row],[Harga Satuan]]*DaftarInventaris[[#This Row],[Kuantitas dalam Stok]]","v":{"v":307400,"d":"Rp307,400.00"}},142,1,150,"Ya"]
[null,{"$f":"IFERROR((DaftarInventaris[[#This Row],[Kuantitas dalam Stok]]<=DaftarInventaris[[#This Row],[Tingkat Penyusunan Ulang]])*(DaftarInventaris[[#This Row],[Dihentikan?]]=\"\")*nilSoroti,0)","v":0},"IN0024","Item 24","Desk 24",{"v":7500,"d":"Rp7,500.00"},173,{"$f":"DaftarInventaris[[#This Row],[Harga Satuan]]*DaftarInventaris[[#This Row],[Kuantitas dalam Stok]]","v":{"v":1297500,"d":"Rp1,297,500.00"}},127,9,100,""]
[null,{"$f":"IFERROR((DaftarInventaris[[#This Row],[Kuantitas dalam Stok]]<=DaftarInventaris[[#This Row],[Tingkat Penyusunan Ulang]])*(DaftarInventaris[[#This Row],[Dihentikan?]]=\"\")*nilSoroti,0)","v":0},"IN0025","Item 25","Desk 25",{"v":1400,"d":"Rp1,400.00"},28,{"$f":"DaftarInventaris[[#This Row],[Harga Satuan]]*DaftarInventaris[[#This Row],[Kuantitas dalam Stok]]","v":{"v":39200,"d":"Rp39,200.00"}},21,8,50,""]